[Event "*** Titled Tuesday Blitz"]
[Site "Chess.com"]
[Date "2021.04.27"]
[Round "4"]
[White "Bad_left_hook"]
[Black "Harald_Schmidt"]
[Result "1-0"]
[WhiteElo "2572"]
[BlackElo "2324"]
[TimeControl "180+1"]
[EndTime "10:40:05 PDT"]
[Termination "Bad_left_hook won on time"]

1. d4 {[%clk 0:03:00.9]} 1... Nf6 {[%clk 0:02:52]} 2. c4 {[%clk 0:03:00.7]} 2...
e6 {[%clk 0:02:51.4]} 3. Nc3 {[%clk 0:03:00.1]} 3... Bb4 {[%clk 0:02:49]} 4. Qc2
{[%clk 0:03:00.3]} 4... d5 {[%clk 0:02:46.9]} 5. Nf3 {[%clk 0:02:56.9]} 5... O-O
{[%clk 0:02:45.9]} 6. cxd5 {[%clk 0:02:55.1]} 6... exd5 {[%clk 0:02:43.3]} 7.
Bf4 {[%clk 0:02:54.6]} 7... c6 {[%clk 0:02:25.6]} 8. e3 {[%clk 0:02:50.7]} 8...
Nbd7 {[%clk 0:02:13]} 9. Bd3 {[%clk 0:02:47.6]} 9... Re8 {[%clk 0:02:12.7]} 10.
O-O {[%clk 0:02:44.5]} 10... Nf8 {[%clk 0:02:12.4]} 11. h3 {[%clk 0:02:39.5]}
11... Bd6 {[%clk 0:02:10.8]} 12. Ne5 {[%clk 0:02:29.9]} 12... Be6 {[%clk
0:02:06.8]} 13. Rab1 {[%clk 0:02:27.1]} 13... a5 {[%clk 0:02:00.5]} 14. Bg5
{[%clk 0:02:22.1]} 14... Be7 {[%clk 0:01:56.2]} 15. f4 {[%clk 0:02:20.3]} 15...
h6 {[%clk 0:01:37.1]} 16. Bh4 {[%clk 0:02:18.1]} 16... N6d7 {[%clk 0:01:36]} 17.
Bg3 {[%clk 0:01:42.8]} 17... f6 {[%clk 0:01:34.6]} 18. Ng4 {[%clk 0:01:30.3]}
18... Bf7 {[%clk 0:01:28.2]} 19. Rbe1 {[%clk 0:01:24.1]} 19... Bd6 {[%clk
0:01:27.7]} 20. e4 {[%clk 0:01:22.4]} 20... dxe4 {[%clk 0:01:26.9]} 21. Nxe4
{[%clk 0:01:22.2]} 21... Bc7 {[%clk 0:01:22.6]} 22. Bh4 {[%clk 0:01:14.7]} 22...
Qb8 {[%clk 0:01:08.3]} 23. Nxh6+ {[%clk 0:00:55.9]} 23... gxh6 {[%clk
0:01:06.6]} 24. Bxf6 {[%clk 0:00:56.2]} 24... Rxe4 {[%clk 0:01:00.2]} 25. Bxe4
{[%clk 0:00:56.2]} 25... Nxf6 {[%clk 0:01:00]} 26. Qf2 {[%clk 0:00:54]} 26...
Qd8 {[%clk 0:00:58.5]} 27. Bf5 {[%clk 0:00:50]} 27... Bb6 {[%clk 0:00:55]} 28.
Qg3+ {[%clk 0:00:45.9]} 28... Kh8 {[%clk 0:00:54]} 29. Kh1 {[%clk 0:00:46.4]}
29... Nd5 {[%clk 0:00:46.4]} 30. Bb1 {[%clk 0:00:45.1]} 30... Qf6 {[%clk
0:00:45.4]} 31. Re5 {[%clk 0:00:41.9]} 31... Bxd4 {[%clk 0:00:40.6]} 32. Rf5
{[%clk 0:00:41.9]} 32... Qg7 {[%clk 0:00:39.1]} 33. Qh4 {[%clk 0:00:34.9]} 33...
Bg6 {[%clk 0:00:37.9]} 34. Rxd5 {[%clk 0:00:30.6]} 34... cxd5 {[%clk 0:00:35.8]}
35. f5 {[%clk 0:00:30.7]} 35... Bh7 {[%clk 0:00:33.1]} 36. f6 {[%clk 0:00:26.6]}
36... Qg5 {[%clk 0:00:32.6]} 37. Qxd4 {[%clk 0:00:24.8]} 37... Ne6 {[%clk
0:00:32]} 38. Qb6 {[%clk 0:00:17.3]} 38... Rg8 {[%clk 0:00:28.8]} 39. Qf2 {[%clk
0:00:11.1]} 39... Bxb1 {[%clk 0:00:28]} 40. Rxb1 {[%clk 0:00:12]} 40... Rf8
{[%clk 0:00:19.2]} 41. Rf1 {[%clk 0:00:11.4]} 41... d4 {[%clk 0:00:19.1]} 42.
Qf3 {[%clk 0:00:08.8]} 42... Nc5 {[%clk 0:00:12.7]} 43. f7 {[%clk 0:00:07.5]}
43... d3 {[%clk 0:00:08.4]} 44. Qf2 {[%clk 0:00:06.5]} 44... d2 {[%clk 0:00:07]}
45. Qd4+ {[%clk 0:00:05.3]} 45... Kh7 {[%clk 0:00:06.2]} 46. h4 {[%clk
0:00:05.7]} 46... Qg7 {[%clk 0:00:01.4]} 47. Qxd2 {[%clk 0:00:04.9]} 1-0

[Event "*** Titled Tuesday Blitz"]
[Site "Chess.com"]
[Date "2021.04.27"]
[Round "4"]
[White "Sammed_Shete"]
[Black "Twitch_ElhamBlitz05"]
[Result "1/2-1/2"]
[WhiteElo "2647"]
[BlackElo "2846"]
[TimeControl "180+1"]
[EndTime "10:40:11 PDT"]
[Termination "Game drawn by repetition"]

1. e4 {[%clk 0:03:00.9]} 1... c6 {[%clk 0:02:59.4]} 2. d4 {[%clk 0:03:01.5]}
2... d5 {[%clk 0:03:00.3]} 3. e5 {[%clk 0:03:02.1]} 3... c5 {[%clk 0:03:00.6]}
4. dxc5 {[%clk 0:02:58.1]} 4... e6 {[%clk 0:03:00.2]} 5. Be3 {[%clk 0:02:57.9]}
5... Nd7 {[%clk 0:03:00.4]} 6. Nf3 {[%clk 0:02:55.8]} 6... Bxc5 {[%clk
0:02:58.8]} 7. Bxc5 {[%clk 0:02:54.4]} 7... Nxc5 {[%clk 0:02:59.7]} 8. Nbd2
{[%clk 0:02:51]} 8... Ne7 {[%clk 0:02:58.9]} 9. c4 {[%clk 0:02:50.4]} 9... O-O
{[%clk 0:02:55.4]} 10. b4 {[%clk 0:02:46.3]} 10... Nd7 {[%clk 0:02:52.7]} 11.
Bd3 {[%clk 0:02:45.5]} 11... Ng6 {[%clk 0:02:46.5]} 12. Bxg6 {[%clk 0:02:43.4]}
12... hxg6 {[%clk 0:02:45.6]} 13. cxd5 {[%clk 0:02:40.6]} 13... exd5 {[%clk
0:02:45.7]} 14. O-O {[%clk 0:02:41.2]} 14... a5 {[%clk 0:02:31.8]} 15. bxa5
{[%clk 0:02:36.2]} 15... Nc5 {[%clk 0:02:24.8]} 16. Nb3 {[%clk 0:02:17.5]} 16...
Nxb3 {[%clk 0:02:22.2]} 17. axb3 {[%clk 0:02:04.7]} 17... Rxa5 {[%clk
0:02:21.4]} 18. Rxa5 {[%clk 0:02:05.2]} 18... Qxa5 {[%clk 0:02:22.3]} 19. Qd4
{[%clk 0:02:05.5]} 19... Bf5 {[%clk 0:01:57.3]} 20. h3 {[%clk 0:02:01.5]} 20...
Qb5 {[%clk 0:01:51.9]} 21. Qh4 {[%clk 0:01:50.8]} 21... g5 {[%clk 0:01:23.1]}
22. Qxg5 {[%clk 0:01:36.4]} 22... Be4 {[%clk 0:01:23]} 23. Nd4 {[%clk 0:01:24]}
23... Qd3 {[%clk 0:01:22.8]} 24. Qe3 {[%clk 0:00:59]} 24... Qxe3 {[%clk
0:01:22.9]} 25. fxe3 {[%clk 0:00:59.9]} 25... Rc8 {[%clk 0:01:23.3]} 26. e6
{[%clk 0:00:51.2]} 26... fxe6 {[%clk 0:01:23.2]} 27. Nxe6 {[%clk 0:00:52.1]}
27... Rc3 {[%clk 0:01:08.4]} 28. Rf8+ {[%clk 0:00:50.1]} 28... Kh7 {[%clk
0:01:08.6]} 29. Rf7 {[%clk 0:00:42.3]} 29... Kg6 {[%clk 0:00:45]} 30. Rxb7
{[%clk 0:00:26.4]} 30... d4 {[%clk 0:00:41.5]} 31. Rxg7+ {[%clk 0:00:18.4]}
31... Kf6 {[%clk 0:00:41]} 32. exd4 {[%clk 0:00:18.8]} 32... Kxe6 {[%clk
0:00:40.6]} 33. h4 {[%clk 0:00:18.1]} 33... Rxb3 {[%clk 0:00:35.9]} 34. h5
{[%clk 0:00:17.4]} 34... Kf6 {[%clk 0:00:36.5]} 35. h6 {[%clk 0:00:17]} 35...
Rb8 {[%clk 0:00:27.2]} 36. g4 {[%clk 0:00:16.3]} 36... Rb1+ {[%clk 0:00:15.7]}
37. Kf2 {[%clk 0:00:15.9]} 37... Rh1 {[%clk 0:00:13]} 38. g5+ {[%clk 0:00:15.7]}
38... Ke6 {[%clk 0:00:13.5]} 39. Ke3 {[%clk 0:00:14.1]} 39... Bb1 {[%clk
0:00:12.5]} 40. Rb7 {[%clk 0:00:11.5]} 40... Kf5 {[%clk 0:00:02.8]} 41. Rg7
{[%clk 0:00:09.2]} 41... Rh3+ {[%clk 0:00:02.3]} 42. Kd2 {[%clk 0:00:08.5]}
42... Kf4 {[%clk 0:00:02.2]} 43. d5 {[%clk 0:00:04.7]} 43... Bf5 {[%clk
0:00:01.8]} 44. d6 {[%clk 0:00:04.5]} 44... Rd3+ {[%clk 0:00:02.1]} 45. Ke2
{[%clk 0:00:02.7]} 45... Rxd6 {[%clk 0:00:02.7]} 46. h7 {[%clk 0:00:03.5]} 46...
Rd8 {[%clk 0:00:01.6]} 47. g6 {[%clk 0:00:04]} 47... Bg4+ {[%clk 0:00:01.9]} 48.
Kf2 {[%clk 0:00:03.6]} 48... Rd2+ {[%clk 0:00:01.9]} 49. Ke1 {[%clk 0:00:03.9]}
49... Rd1+ {[%clk 0:00:02.5]} 50. Kf2 {[%clk 0:00:04.2]} 50... Rd2+ {[%clk
0:00:03.1]} 51. Ke1 {[%clk 0:00:05]} 51... Rd1+ {[%clk 0:00:02]} 52. Kf2 {[%clk
0:00:05.6]} 52... Rd2+ {[%clk 0:00:01.6]} 1/2-1/2

[Event "*** Titled Tuesday Blitz"]
[Site "Chess.com"]
[Date "2021.04.27"]
[Round "4"]
[White "Sjakkerntobi"]
[Black "SilviusTiberius"]
[Result "0-1"]
[WhiteElo "2385"]
[BlackElo "2608"]
[TimeControl "180+1"]
[EndTime "10:40:11 PDT"]
[Termination "SilviusTiberius won by checkmate"]

1. e4 {[%clk 0:03:00.9]} 1... e5 {[%clk 0:02:59.9]} 2. Nf3 {[%clk 0:02:59.6]}
2... Nc6 {[%clk 0:03:00.2]} 3. Bb5 {[%clk 0:02:59.7]} 3... Nf6 {[%clk
0:03:00.2]} 4. O-O {[%clk 0:02:59.1]} 4... Nxe4 {[%clk 0:02:59.7]} 5. Re1 {[%clk
0:02:51.3]} 5... Nd6 {[%clk 0:02:59.7]} 6. Nxe5 {[%clk 0:02:51.2]} 6... Be7
{[%clk 0:03:00.1]} 7. Bf1 {[%clk 0:02:50.6]} 7... Nxe5 {[%clk 0:03:00.2]} 8.
Rxe5 {[%clk 0:02:51.5]} 8... O-O {[%clk 0:03:00.4]} 9. d4 {[%clk 0:02:51.9]}
9... Bf6 {[%clk 0:03:00.2]} 10. Re1 {[%clk 0:02:51.6]} 10... Re8 {[%clk
0:03:00.7]} 11. Rxe8+ {[%clk 0:02:48.8]} 11... Nxe8 {[%clk 0:03:01]} 12. c4
{[%clk 0:02:47.4]} 12... d5 {[%clk 0:02:54.2]} 13. Nc3 {[%clk 0:02:35.2]} 13...
dxc4 {[%clk 0:02:50.8]} 14. d5 {[%clk 0:02:34.1]} 14... Nd6 {[%clk 0:02:50.1]}
15. Bf4 {[%clk 0:02:30]} 15... Bf5 {[%clk 0:02:42.1]} 16. Rc1 {[%clk 0:02:22.8]}
16... Bg5 {[%clk 0:02:17.2]} 17. Qf3 {[%clk 0:02:16.5]} 17... Bxf4 {[%clk
0:02:16.8]} 18. Qxf4 {[%clk 0:02:16.2]} 18... Qe7 {[%clk 0:01:54.1]} 19. h3
{[%clk 0:02:11.6]} 19... Re8 {[%clk 0:01:49.9]} 20. Bxc4 {[%clk 0:02:11]} 20...
a6 {[%clk 0:01:39.5]} 21. Bf1 {[%clk 0:02:04.5]} 21... h5 {[%clk 0:01:32.1]} 22.
Ne2 {[%clk 0:01:54.6]} 22... Bg6 {[%clk 0:01:26.7]} 23. Nd4 {[%clk 0:01:37.2]}
23... Qe4 {[%clk 0:01:14.5]} 24. Qxe4 {[%clk 0:01:35.9]} 24... Bxe4 {[%clk
0:01:14.9]} 25. Rxc7 {[%clk 0:01:29.5]} 25... Bxd5 {[%clk 0:01:15.3]} 26. Rd7
{[%clk 0:01:29.4]} 26... Re1 {[%clk 0:01:09.6]} 27. Nc2 {[%clk 0:01:11.9]} 27...
Re6 {[%clk 0:01:05.9]} 28. Ne3 {[%clk 0:01:02.1]} 28... Bc6 {[%clk 0:01:05.3]}
29. Rd8+ {[%clk 0:01:01.6]} 29... Kh7 {[%clk 0:01:05.7]} 30. Bd3+ {[%clk
0:01:02.2]} 30... g6 {[%clk 0:01:05.6]} 31. Kf1 {[%clk 0:00:53.2]} 31... Kg7
{[%clk 0:01:03.9]} 32. h4 {[%clk 0:00:53.2]} 32... Kf6 {[%clk 0:00:58.8]} 33.
Ke2 {[%clk 0:00:47.7]} 33... Ke7 {[%clk 0:00:58]} 34. Rb8 {[%clk 0:00:36.6]}
34... Bxg2 {[%clk 0:00:57.9]} 35. f3 {[%clk 0:00:36.3]} 35... Bf1+ {[%clk
0:00:53.6]} 36. Kd2 {[%clk 0:00:12.9]} 36... Bxd3 {[%clk 0:00:53.3]} 37. Kxd3
{[%clk 0:00:13.8]} 37... Re5 {[%clk 0:00:43.1]} 38. Nc4 {[%clk 0:00:11.5]} 38...
Rd5+ {[%clk 0:00:32.5]} 39. Kc3 {[%clk 0:00:06.8]} 39... Rc5 {[%clk 0:00:31.8]}
40. b3 {[%clk 0:00:04.9]} 40... Nxc4 {[%clk 0:00:30.4]} 41. bxc4 {[%clk
0:00:04.5]} 41... b5 {[%clk 0:00:30.2]} 42. Rb7+ {[%clk 0:00:04.9]} 42... Kf8
{[%clk 0:00:30.1]} 43. Kd3 {[%clk 0:00:01.8]} 43... Rxc4 {[%clk 0:00:29.9]} 44.
Rb6 {[%clk 0:00:02.7]} 44... Ra4 {[%clk 0:00:23.5]} 45. Ke3 {[%clk 0:00:03.1]}
45... Rxa2 {[%clk 0:00:23.2]} 46. Ke4 {[%clk 0:00:03.6]} 46... Kg7 {[%clk
0:00:23.1]} 47. Kf4 {[%clk 0:00:03.1]} 47... Ra4+ {[%clk 0:00:22.5]} 48. Kg3
{[%clk 0:00:03.9]} 48... b4 {[%clk 0:00:22.5]} 49. Rb7 {[%clk 0:00:04.5]} 49...
a5 {[%clk 0:00:22.7]} 50. Rb6 {[%clk 0:00:05]} 50... Ra3 {[%clk 0:00:21.4]} 51.
Kg2 {[%clk 0:00:05.3]} 51... b3 {[%clk 0:00:21.9]} 52. f4 {[%clk 0:00:05.6]}
52... a4 {[%clk 0:00:21.8]} 53. f5 {[%clk 0:00:05.4]} 53... gxf5 {[%clk
0:00:21.6]} 54. Kh3 {[%clk 0:00:05]} 54... b2+ {[%clk 0:00:21.6]} 55. Kh2 {[%clk
0:00:05.4]} 55... Rb3 {[%clk 0:00:21.8]} 56. Rd6 {[%clk 0:00:01.8]} 56... b1=Q
{[%clk 0:00:20.2]} 57. Rd2 {[%clk 0:00:02.7]} 57... Rb2 {[%clk 0:00:19.4]} 58.
Rg2+ {[%clk 0:00:03.6]} 58... Rxg2+ {[%clk 0:00:19.2]} 59. Kh3 {[%clk
0:00:04.4]} 59... Qh1# {[%clk 0:00:17]} 0-1

[Event "*** Titled Tuesday Blitz"]
[Site "Chess.com"]
[Date "2021.04.27"]
[Round "4"]
[White "HanSchut"]
[Black "IANOV0007"]
[Result "0-1"]
[WhiteElo "2287"]
[BlackElo "2468"]
[TimeControl "180+1"]
[EndTime "10:40:11 PDT"]
[Termination "IANOV0007 won on time"]

1. e4 {[%clk 0:03:00.9]} 1... d6 {[%clk 0:02:59.7]} 2. d4 {[%clk 0:03:00.8]}
2... Nf6 {[%clk 0:02:59.6]} 3. Nc3 {[%clk 0:03:01.1]} 3... c6 {[%clk 0:02:59.7]}
4. f4 {[%clk 0:03:01.5]} 4... Qb6 {[%clk 0:02:59.3]} 5. h3 {[%clk 0:02:53.3]}
5... e5 {[%clk 0:02:57.8]} 6. Nf3 {[%clk 0:02:49.5]} 6... exd4 {[%clk
0:02:55.2]} 7. Qxd4 {[%clk 0:02:46.8]} 7... Qxd4 {[%clk 0:02:54.1]} 8. Nxd4
{[%clk 0:02:47.7]} 8... g6 {[%clk 0:02:54]} 9. e5 {[%clk 0:02:17.7]} 9... Nh5
{[%clk 0:02:48.8]} 10. exd6 {[%clk 0:02:06.6]} 10... Bxd6 {[%clk 0:02:47.4]} 11.
Ne4 {[%clk 0:02:06.9]} 11... Bxf4 {[%clk 0:02:34.8]} 12. Bxf4 {[%clk 0:01:56.4]}
12... Nxf4 {[%clk 0:02:33.9]} 13. Nd6+ {[%clk 0:01:55.9]} 13... Ke7 {[%clk
0:02:32.7]} 14. Nxc8+ {[%clk 0:01:51.7]} 14... Rxc8 {[%clk 0:02:30.9]} 15. O-O-O
{[%clk 0:01:48.5]} 15... Nd7 {[%clk 0:02:22.6]} 16. Bc4 {[%clk 0:01:39.9]} 16...
Nb6 {[%clk 0:02:18.7]} 17. Rde1+ {[%clk 0:01:31.7]} 17... Kf8 {[%clk 0:02:13.4]}
18. Rhf1 {[%clk 0:01:24]} 18... g5 {[%clk 0:01:57.6]} 19. g3 {[%clk 0:01:11.5]}
19... Re8 {[%clk 0:01:30.8]} 20. Rxe8+ {[%clk 0:01:00.5]} 20... Rxe8 {[%clk
0:01:27]} 21. Bxf7 {[%clk 0:00:56.7]} 21... Kxf7 {[%clk 0:01:20.7]} 22. gxf4
{[%clk 0:00:56.9]} 22... gxf4 {[%clk 0:01:09.9]} 23. Rxf4+ {[%clk 0:00:56.8]}
23... Kg6 {[%clk 0:01:09.8]} 24. Rg4+ {[%clk 0:00:43.8]} 24... Kf6 {[%clk
0:01:08.4]} 25. b3 {[%clk 0:00:42.2]} 25... Nd5 {[%clk 0:01:06.4]} 26. Kb2
{[%clk 0:00:39.5]} 26... h5 {[%clk 0:01:01.9]} 27. Rh4 {[%clk 0:00:36.9]} 27...
Kg6 {[%clk 0:01:01.2]} 28. Nf3 {[%clk 0:00:22.3]} 28... Re3 {[%clk 0:00:58.4]}
29. Nd2 {[%clk 0:00:20.2]} 29... Kg5 {[%clk 0:00:51.3]} 30. Ra4 {[%clk 0:00:19]}
30... a6 {[%clk 0:00:49]} 31. h4+ {[%clk 0:00:19]} 31... Kf5 {[%clk 0:00:47.7]}
32. Nc4 {[%clk 0:00:16.2]} 32... Re6 {[%clk 0:00:43.1]} 33. Na5 {[%clk
0:00:12.8]} 33... Re7 {[%clk 0:00:42.2]} 34. Rd4 {[%clk 0:00:11.5]} 34... Nf4
{[%clk 0:00:40.4]} 35. Nc4 {[%clk 0:00:10.2]} 35... Kg4 {[%clk 0:00:37.7]} 36.
Nd2 {[%clk 0:00:07.5]} 36... Rf7 {[%clk 0:00:34.5]} 37. Nc4 {[%clk 0:00:06.4]}
37... Kxh4 {[%clk 0:00:31.2]} 38. Ne5 {[%clk 0:00:06.8]} 38... Rf5 {[%clk
0:00:30.3]} 39. Nd3 {[%clk 0:00:05.9]} 39... Kg3 {[%clk 0:00:26.1]} 40. Ne1
{[%clk 0:00:01.4]} 40... h4 {[%clk 0:00:24.7]} 41. c4 {[%clk 0:00:01.4]} 41...
h3 {[%clk 0:00:24.4]} 42. Rd2 {[%clk 0:00:01.5]} 42... h2 {[%clk 0:00:23.9]} 43.
Rxh2 {[%clk 0:00:01.2]} 43... Kxh2 {[%clk 0:00:23.2]} 44. Nf3+ {[%clk
0:00:02.1]} 44... Kg3 {[%clk 0:00:21.7]} 45. Nd4 {[%clk 0:00:03]} 45... Re5
{[%clk 0:00:20.8]} 46. Kc3 {[%clk 0:00:02.5]} 46... c5 {[%clk 0:00:20.1]} 47.
Nc2 {[%clk 0:00:02.2]} 47... Re2 {[%clk 0:00:19.4]} 48. a3 {[%clk 0:00:01.7]}
48... Kf3 {[%clk 0:00:17.4]} 49. b4 {[%clk 0:00:01.8]} 49... b6 {[%clk
0:00:16.7]} 50. a4 {[%clk 0:00:01.6]} 50... a5 {[%clk 0:00:16.1]} 51. bxc5
{[%clk 0:00:01.7]} 51... bxc5 {[%clk 0:00:16]} 52. Kb3 {[%clk 0:00:02.6]} 52...
Re3+ {[%clk 0:00:15.6]} 53. Kb2 {[%clk 0:00:02.6]} 53... Rd3 {[%clk 0:00:15.3]}
54. Kc1 {[%clk 0:00:02.7]} 54... Ke2 {[%clk 0:00:14.9]} 55. Kb2 {[%clk
0:00:02.2]} 55... Rd2 {[%clk 0:00:14.7]} 56. Kc3 {[%clk 0:00:02.4]} 56... Rxc2+
{[%clk 0:00:14.8]} 57. Kxc2 {[%clk 0:00:02.9]} 57... Ke3 {[%clk 0:00:15.2]} 58.
Kc3 {[%clk 0:00:03.2]} 58... Ke4 {[%clk 0:00:15]} 0-1

[Event "*** Titled Tuesday Blitz"]
[Site "Chess.com"]
[Date "2021.04.27"]
[Round "4"]
[White "HouseOfDurin"]
[Black "FrenchMonster2002"]
[Result "1-0"]
[WhiteElo "2140"]
[BlackElo "2364"]
[TimeControl "180+1"]
[EndTime "10:40:11 PDT"]
[Termination "HouseOfDurin won on time"]

1. d4 {[%clk 0:03:00.9]} 1... g6 {[%clk 0:02:58.8]} 2. h4 {[%clk 0:02:59.5]}
2... Nf6 {[%clk 0:02:56.5]} 3. Bg5 {[%clk 0:02:57.8]} 3... Bg7 {[%clk
0:02:55.7]} 4. Bxf6 {[%clk 0:02:58]} 4... Bxf6 {[%clk 0:02:56.6]} 5. h5 {[%clk
0:02:58.5]} 5... c5 {[%clk 0:02:53]} 6. c3 {[%clk 0:02:39.6]} 6... cxd4 {[%clk
0:02:47.2]} 7. cxd4 {[%clk 0:02:40.5]} 7... Qb6 {[%clk 0:02:47.5]} 8. Qc2 {[%clk
0:02:40.7]} 8... Nc6 {[%clk 0:02:45.3]} 9. e3 {[%clk 0:02:40.3]} 9... d6 {[%clk
0:02:36.3]} 10. Nd2 {[%clk 0:02:22.8]} 10... Bf5 {[%clk 0:02:35.6]} 11. Qb3
{[%clk 0:02:22.5]} 11... Nb4 {[%clk 0:02:13.6]} 12. Rc1 {[%clk 0:02:05]} 12...
Nc2+ {[%clk 0:02:12.6]} 13. Kd1 {[%clk 0:01:46.3]} 13... Qxb3 {[%clk 0:01:32.9]}
14. Nxb3 {[%clk 0:01:47.2]} 14... Nb4 {[%clk 0:01:33.2]} 15. Bb5+ {[%clk
0:01:43.3]} 15... Kd8 {[%clk 0:01:28.7]} 16. a3 {[%clk 0:01:33.8]} 16... Nd3
{[%clk 0:01:25]} 17. Bxd3 {[%clk 0:01:32]} 17... Bxd3 {[%clk 0:01:25.9]} 18. Kd2
{[%clk 0:01:24.9]} 18... Bf5 {[%clk 0:01:22.7]} 19. f3 {[%clk 0:01:18.8]} 19...
b6 {[%clk 0:01:13.7]} 20. hxg6 {[%clk 0:01:10.1]} 20... hxg6 {[%clk 0:01:13.8]}
21. Rxh8+ {[%clk 0:01:08.1]} 21... Bxh8 {[%clk 0:01:14.7]} 22. g4 {[%clk
0:01:04.1]} 22... Be6 {[%clk 0:01:14.6]} 23. Rc3 {[%clk 0:00:58.4]} 23... Kd7
{[%clk 0:01:05.7]} 24. Ne2 {[%clk 0:00:53.8]} 24... g5 {[%clk 0:00:51]} 25. e4
{[%clk 0:00:47]} 25... d5 {[%clk 0:00:47.5]} 26. e5 {[%clk 0:00:31.1]} 26... f6
{[%clk 0:00:42.9]} 27. exf6 {[%clk 0:00:27.6]} 27... Bxf6 {[%clk 0:00:43.8]} 28.
Nbc1 {[%clk 0:00:27.5]} 28... Rh8 {[%clk 0:00:42.1]} 29. Nd3 {[%clk 0:00:25.5]}
29... Rh2 {[%clk 0:00:42.3]} 30. Ke3 {[%clk 0:00:24.8]} 30... Rh3 {[%clk
0:00:34.5]} 31. Kf2 {[%clk 0:00:23.1]} 31... Rh2+ {[%clk 0:00:32.9]} 32. Ke3
{[%clk 0:00:23]} 32... Bf7 {[%clk 0:00:26.4]} 33. Rc1 {[%clk 0:00:21.8]} 33...
Bg6 {[%clk 0:00:16.4]} 34. Rf1 {[%clk 0:00:17.2]} 34... e6 {[%clk 0:00:12.1]}
35. Nf2 {[%clk 0:00:15.8]} 35... Kd6 {[%clk 0:00:08.2]} 36. Rh1 {[%clk
0:00:15.5]} 36... Rxh1 {[%clk 0:00:08.5]} 37. Nxh1 {[%clk 0:00:16.2]} 37... e5
{[%clk 0:00:07.6]} 38. Nhg3 {[%clk 0:00:15.8]} 38... a6 {[%clk 0:00:02.5]} 39.
Nh5 {[%clk 0:00:11.2]} 39... Bxh5 {[%clk 0:00:02.5]} 40. gxh5 {[%clk 0:00:12.1]}
40... exd4+ {[%clk 0:00:01.5]} 41. Nxd4 {[%clk 0:00:13]} 41... Bg7 {[%clk
0:00:01.3]} 42. b3 {[%clk 0:00:12.2]} 42... Ke5 {[%clk 0:00:01.7]} 43. Nc6+
{[%clk 0:00:11.6]} 43... Kf5 {[%clk 0:00:01.7]} 44. Nb8 {[%clk 0:00:08]} 44...
a5 {[%clk 0:00:02.2]} 45. a4 {[%clk 0:00:06.6]} 45... Bf8 {[%clk 0:00:01.9]} 46.
Nd7 {[%clk 0:00:07]} 46... Bb4 {[%clk 0:00:01.6]} 47. h6 {[%clk 0:00:01.4]}
47... Kg6 {[%clk 0:00:01.4]} 48. Kd4 {[%clk 0:00:02]} 48... Kxh6 {[%clk
0:00:01.1]} 49. Kxd5 {[%clk 0:00:02.6]} 49... Kh5 {[%clk 0:00:01.7]} 50. Nxb6
{[%clk 0:00:03]} 50... Kh4 {[%clk 0:00:01.8]} 51. Ke4 {[%clk 0:00:03.1]} 51...
Kg3 {[%clk 0:00:01.9]} 52. Nd5 {[%clk 0:00:03.7]} 52... Be1 {[%clk 0:00:01.8]}
53. Ne3 {[%clk 0:00:02.5]} 1-0

[Event "*** Titled Tuesday Blitz"]
[Site "Chess.com"]
[Date "2021.04.27"]
[Round "4"]
[White "Arystanner"]
[Black "szachuspl"]
[Result "1-0"]
[WhiteElo "2832"]
[BlackElo "2552"]
[TimeControl "180+1"]
[EndTime "10:40:12 PDT"]
[Termination "Arystanner won by resignation"]

1. e4 {[%clk 0:03:00.9]} 1... c5 {[%clk 0:02:56.2]} 2. Nf3 {[%clk 0:03:00.5]}
2... e6 {[%clk 0:02:56.2]} 3. c3 {[%clk 0:02:59.5]} 3... Nf6 {[%clk 0:02:55.7]}
4. e5 {[%clk 0:02:59.8]} 4... Nd5 {[%clk 0:02:55.5]} 5. d4 {[%clk 0:03:00.3]}
5... cxd4 {[%clk 0:02:55.7]} 6. cxd4 {[%clk 0:03:01.2]} 6... d6 {[%clk
0:02:55.7]} 7. Bc4 {[%clk 0:03:00.8]} 7... Nb6 {[%clk 0:02:54]} 8. Bb5+ {[%clk
0:02:59.3]} 8... Bd7 {[%clk 0:02:53.2]} 9. Bd3 {[%clk 0:02:59.5]} 9... Bc6
{[%clk 0:02:52.7]} 10. O-O {[%clk 0:02:58]} 10... N8d7 {[%clk 0:02:46.4]} 11.
Nc3 {[%clk 0:02:57.4]} 11... Bxf3 {[%clk 0:02:38.7]} 12. Qxf3 {[%clk 0:02:56.1]}
12... dxe5 {[%clk 0:02:39.1]} 13. dxe5 {[%clk 0:02:55.3]} 13... Nxe5 {[%clk
0:02:24.7]} 14. Bb5+ {[%clk 0:02:55.2]} 14... Ned7 {[%clk 0:02:22.5]} 15. Qxb7
{[%clk 0:02:53.1]} 15... Qc8 {[%clk 0:02:18]} 16. Qf3 {[%clk 0:02:46.2]} 16...
Be7 {[%clk 0:02:17.2]} 17. Bc6 {[%clk 0:02:37.2]} 17... Rb8 {[%clk 0:02:07.4]}
18. Bf4 {[%clk 0:02:36.3]} 18... O-O {[%clk 0:02:05]} 19. Bxb8 {[%clk 0:02:36]}
19... Nxb8 {[%clk 0:01:57.8]} 20. Be4 {[%clk 0:02:34.4]} 20... N8d7 {[%clk
0:01:54.3]} 21. Rac1 {[%clk 0:02:33]} 21... Qa6 {[%clk 0:01:50.9]} 22. Rfd1
{[%clk 0:02:30.1]} 22... Nf6 {[%clk 0:01:49.8]} 23. Bb1 {[%clk 0:02:23.7]} 23...
Qa5 {[%clk 0:01:49.4]} 24. h3 {[%clk 0:02:21]} 24... h6 {[%clk 0:01:48.8]} 25.
Ne4 {[%clk 0:02:19.9]} 25... Nbd5 {[%clk 0:01:46.3]} 26. Nxf6+ {[%clk
0:02:19.4]} 26... Bxf6 {[%clk 0:01:45.7]} 27. Qe2 {[%clk 0:02:01.5]} 27... g6
{[%clk 0:01:42.7]} 28. Rc4 {[%clk 0:01:17.4]} 28... Kg7 {[%clk 0:01:40.4]} 29.
Qd2 {[%clk 0:01:13.3]} 29... Qb6 {[%clk 0:01:38]} 30. b3 {[%clk 0:01:11.5]}
30... Rd8 {[%clk 0:01:36]} 31. Qc1 {[%clk 0:01:08.6]} 31... Qa5 {[%clk 0:01:28]}
32. Ra4 {[%clk 0:00:57.1]} 32... Qb6 {[%clk 0:01:22.4]} 33. Rc4 {[%clk 0:00:57]}
33... Nc3 {[%clk 0:01:10.3]} 34. Re1 {[%clk 0:00:31.9]} 34... Nd5 {[%clk
0:00:52.8]} 35. Be4 {[%clk 0:00:28.4]} 35... Nb4 {[%clk 0:00:43]} 36. a3 {[%clk
0:00:24.2]} 36... Nd3 {[%clk 0:00:33.4]} 37. Bxd3 {[%clk 0:00:24.2]} 37... Rxd3
{[%clk 0:00:34.3]} 38. b4 {[%clk 0:00:23.8]} 38... Qa6 {[%clk 0:00:33.1]} 39.
Re3 {[%clk 0:00:20.1]} 39... Rd5 {[%clk 0:00:31.2]} 40. Rb3 {[%clk 0:00:18.6]}
40... Qb6 {[%clk 0:00:29.6]} 41. Rc2 {[%clk 0:00:17.7]} 41... Qd6 {[%clk
0:00:29.5]} 42. Rb1 {[%clk 0:00:16.3]} 42... Rd3 {[%clk 0:00:29.1]} 43. Re2
{[%clk 0:00:13.8]} 43... Qd4 {[%clk 0:00:26.7]} 44. a4 {[%clk 0:00:10.8]} 44...
h5 {[%clk 0:00:26.1]} 45. b5 {[%clk 0:00:10.6]} 45... Rc3 {[%clk 0:00:26.3]} 46.
Qe1 {[%clk 0:00:10.4]} 46... Ra3 {[%clk 0:00:25.3]} 47. a5 {[%clk 0:00:10.9]}
47... Qc5 {[%clk 0:00:19.7]} 48. b6 {[%clk 0:00:10.8]} 48... axb6 {[%clk
0:00:18.2]} 49. axb6 {[%clk 0:00:11.7]} 49... Ra8 {[%clk 0:00:17.8]} 50. b7
{[%clk 0:00:12]} 50... Rb8 {[%clk 0:00:18.2]} 51. Qd1 {[%clk 0:00:10.6]} 51...
Qc7 {[%clk 0:00:17.8]} 52. Qb3 {[%clk 0:00:10.7]} 52... Be5 {[%clk 0:00:16.1]}
53. Rc2 {[%clk 0:00:11.1]} 53... Qd6 {[%clk 0:00:15.8]} 54. Rc8 {[%clk
0:00:10.5]} 54... Qd4 {[%clk 0:00:14.6]} 55. Rxb8 {[%clk 0:00:10.4]} 55... Bxb8
{[%clk 0:00:14.4]} 56. Qb2 {[%clk 0:00:11.1]} 56... e5 {[%clk 0:00:14.4]} 57.
Qxd4 {[%clk 0:00:11.2]} 57... exd4 {[%clk 0:00:15.3]} 58. Rd1 {[%clk 0:00:11.3]}
58... Kf6 {[%clk 0:00:14.4]} 59. Rxd4 {[%clk 0:00:11.4]} 59... Ke7 {[%clk
0:00:15.3]} 60. Rc4 {[%clk 0:00:11.9]} 60... Kd7 {[%clk 0:00:15.5]} 61. Rc8
{[%clk 0:00:12.8]} 1-0